[Event "Titled Tuesday Blitz July 4 Early 2023"]
[White "Atakhan, Abtin"]
[Black "Gomes, Luiz Alexandre de Souza"]
[WhiteFideId "22502203"]
[BlackFideId "2102790"]
[WhiteElo "2749"]
[BlackElo "2427"]
[Result "1-0"]
[Round "1"]
[TimeControl "180+2"]
[Date "2023.07.04"]
[WhiteClock "0:01:35"]
[BlackClock "0:00:00"]
[Board "85"]

1. Nf3 {[%clk 0:03:00]}  Nf6 {[%clk 0:02:56]} 2. g3 {[%clk 0:03:01]}  c6 {[%clk 0:02:55]} 3. Bg2 {[%clk 0:03:00]}  d5 {[%clk 0:02:56]} 4. O-O {[%clk 0:02:59]}  Bf5 {[%clk 0:02:57]} 5. c4 {[%clk 0:03:00]}  e6 {[%clk 0:02:57]} 6. Qb3 {[%clk 0:03:00]}  Qb6 {[%clk 0:02:57]} 7. d3 {[%clk 0:03:00]}  Nbd7 {[%clk 0:02:57]} 8. Be3 {[%clk 0:03:00]}  Qxb3 {[%clk 0:02:56]} 9. axb3 {[%clk 0:03:01]}  a6 {[%clk 0:02:56]} 10. Bd4 {[%clk 0:03:00]}  Be7 {[%clk 0:02:56]} 11. Bc3 {[%clk 0:03:01]}  O-O {[%clk 0:02:50]} 12. b4 {[%clk 0:02:58]}  h6 {[%clk 0:02:50]} 13. Nbd2 {[%clk 0:02:56]}  Rfd8 {[%clk 0:02:48]} 14. Nb3 {[%clk 0:02:55]}  Bf8 {[%clk 0:02:41]} 15. Na5 {[%clk 0:02:54]}  Rab8 {[%clk 0:02:30]} 16. Nd4 {[%clk 0:02:55]}  Bg6 {[%clk 0:02:23]} 17. Ndxc6 {[%clk 0:02:55]}  bxc6 {[%clk 0:02:21]} 18. Nxc6 {[%clk 0:02:56]}  Rdc8 {[%clk 0:02:18]} 19. Nxb8 {[%clk 0:02:46]}  Rxb8 {[%clk 0:02:19]} 20. c5 {[%clk 0:02:36]}  d4 {[%clk 0:02:08]} 21. Bxd4 {[%clk 0:02:32]}  Rxb4 {[%clk 0:02:08]} 22. Bc3 {[%clk 0:02:33]}  Rb5 {[%clk 0:01:50]} 23. c6 {[%clk 0:02:22]}  Nb6 {[%clk 0:01:10]} 24. c7 {[%clk 0:02:21]}  Nc8 {[%clk 0:01:07]} 25. Bxf6 {[%clk 0:02:15]}  gxf6 {[%clk 0:01:01]} 26. Rxa6 {[%clk 0:02:16]}  Rc5 {[%clk 0:01:01]} 27. Rc6 {[%clk 0:02:08]}  Rxc6 {[%clk 0:00:59]} 28. Bxc6 {[%clk 0:02:09]}  Bd6 {[%clk 0:00:59]} 29. Bd7 {[%clk 0:02:06]}  Ne7 {[%clk 0:00:47]} 30. Rc1 {[%clk 0:02:01]}  Kg7 {[%clk 0:00:34]} 31. c8=Q {[%clk 0:01:43]}  Nxc8 {[%clk 0:00:34]} 32. Rxc8 {[%clk 0:01:43]}  Bh5 {[%clk 0:00:34]} 33. f3 {[%clk 0:01:40]}  Bb4 {[%clk 0:00:22]} 34. Rc4 {[%clk 0:01:38]}  Bd2 {[%clk 0:00:20]} 35. Kf2 {[%clk 0:01:37]}  Bg6 {[%clk 0:00:16]} 36. b4 {[%clk 0:01:37]}  f5 {[%clk 0:00:07]} 37. b5 {[%clk 0:01:37]}  Ba5 {[%clk 0:00:06]} 38. Rc6 {[%clk 0:01:35]}  e5 {[%clk 0:00:00]} 39. b6 {[%clk 0:01:35]} 1-0


[Site "https://www.chess.com"]

[Event "Titled Tuesday Blitz July 4 Early 2023"]
[White "Shuvalova, Polina"]
[Black "Merino Garcia, Rafael II"]
[WhiteFideId "24171760"]
[BlackFideId "2209128"]
[WhiteElo "2737"]
[BlackElo "2426"]
[Result "1-0"]
[Round "1"]
[TimeControl "180+2"]
[Date "2023.07.04"]
[WhiteClock "0:00:55"]
[BlackClock "0:00:22"]
[Board "87"]

1. Nf3 {[%clk 0:02:59]}  Nf6 {[%clk 0:02:59]} 2. d4 {[%clk 0:02:58]}  e6 {[%clk 0:02:59]} 3. g3 {[%clk 0:02:59]}  b6 {[%clk 0:02:57]} 4. Bg2 {[%clk 0:02:59]}  Bb7 {[%clk 0:02:58]} 5. O-O {[%clk 0:02:59]}  Be7 {[%clk 0:02:57]} 6. Re1 {[%clk 0:03:00]}  O-O {[%clk 0:02:55]} 7. Nbd2 {[%clk 0:02:58]}  d5 {[%clk 0:02:54]} 8. c3 {[%clk 0:02:57]}  c5 {[%clk 0:02:54]} 9. Ne5 {[%clk 0:02:56]}  Nc6 {[%clk 0:02:54]} 10. Ndf3 {[%clk 0:02:55]}  Nd7 {[%clk 0:02:46]} 11. Nxc6 {[%clk 0:02:51]}  Bxc6 {[%clk 0:02:46]} 12. Bf4 {[%clk 0:02:51]}  h6 {[%clk 0:02:40]} 13. a4 {[%clk 0:02:49]}  a6 {[%clk 0:02:38]} 14. h4 {[%clk 0:02:48]}  c4 {[%clk 0:02:26]} 15. Nd2 {[%clk 0:02:38]}  b5 {[%clk 0:02:23]} 16. axb5 {[%clk 0:02:35]}  axb5 {[%clk 0:02:23]} 17. e4 {[%clk 0:02:32]}  dxe4 {[%clk 0:02:12]} 18. Nxe4 {[%clk 0:02:22]}  Bd5 {[%clk 0:02:07]} 19. Qd2 {[%clk 0:02:10]}  Nb6 {[%clk 0:02:01]} 20. Rxa8 {[%clk 0:02:09]}  Qxa8 {[%clk 0:02:00]} 21. f3 {[%clk 0:01:53]}  Rd8 {[%clk 0:01:55]} 22. Qf2 {[%clk 0:01:45]}  b4 {[%clk 0:01:47]} 23. Bc7 {[%clk 0:01:43]}  Na4 {[%clk 0:01:33]} 24. Bxd8 {[%clk 0:01:41]}  Qxd8 {[%clk 0:01:33]} 25. Qc2 {[%clk 0:01:37]}  b3 {[%clk 0:01:33]} 26. Qd2 {[%clk 0:01:36]}  f5 {[%clk 0:01:27]} 27. Nf2 {[%clk 0:01:31]}  Qc7 {[%clk 0:01:24]} 28. f4 {[%clk 0:01:26]}  Kf7 {[%clk 0:01:10]} 29. Qe2 {[%clk 0:01:20]}  Qd6 {[%clk 0:01:07]} 30. Ra1 {[%clk 0:01:13]}  Bxg2 {[%clk 0:01:02]} 31. Kxg2 {[%clk 0:01:10]}  Nb6 {[%clk 0:01:01]} 32. Ra5 {[%clk 0:01:06]}  Qc6+ {[%clk 0:01:01]} 33. Qf3 {[%clk 0:01:06]}  Nd5 {[%clk 0:01:01]} 34. Nd1 {[%clk 0:01:00]}  Bd6 {[%clk 0:00:45]} 35. Kf2 {[%clk 0:00:59]}  Qb6 {[%clk 0:00:40]} 36. Rxd5 {[%clk 0:00:53]}  exd5 {[%clk 0:00:37]} 37. Qxd5+ {[%clk 0:00:54]}  Kf8 {[%clk 0:00:22]} 38. Ne3 {[%clk 0:00:55]} 1-0


[Site "https://www.chess.com"]

[Event "Titled Tuesday Blitz July 4 Early 2023"]
[White "Ncatt"]
[Black "Gunina, Valentina"]
[BlackFideId "4167570"]
[WhiteElo "2425"]
[BlackElo "2736"]
[Result "0-1"]
[Round "1"]
[TimeControl "180+2"]
[Date "2023.07.04"]
[WhiteClock "0:00:28"]
[BlackClock "0:00:23"]
[Board "88"]

1. Nf3 {[%clk 0:02:56]}  d5 {[%clk 0:02:59]} 2. g3 {[%clk 0:02:57]}  c6 {[%clk 0:02:59]} 3. Bg2 {[%clk 0:02:58]}  Bg4 {[%clk 0:02:59]} 4. O-O {[%clk 0:02:58]}  Nd7 {[%clk 0:03:00]} 5. b3 {[%clk 0:02:59]}  e5 {[%clk 0:02:58]} 6. Bb2 {[%clk 0:03:00]}  Bd6 {[%clk 0:02:47]} 7. h3 {[%clk 0:03:00]}  Bxf3 {[%clk 0:02:40]} 8. Bxf3 {[%clk 0:03:00]}  Ne7 {[%clk 0:02:38]} 9. c4 {[%clk 0:03:00]}  d4 {[%clk 0:02:32]} 10. e3 {[%clk 0:02:59]}  O-O {[%clk 0:02:09]} 11. exd4 {[%clk 0:02:54]}  exd4 {[%clk 0:02:09]} 12. Bxd4 {[%clk 0:02:50]}  Nf5 {[%clk 0:02:07]} 13. Bb2 {[%clk 0:02:45]}  Qg5 {[%clk 0:02:06]} 14. Bg2 {[%clk 0:02:31]}  h5 {[%clk 0:01:31]} 15. Nc3 {[%clk 0:02:30]}  Nf6 {[%clk 0:01:28]} 16. Qf3 {[%clk 0:01:48]}  Rfe8 {[%clk 0:01:26]} 17. Rad1 {[%clk 0:01:46]}  h4 {[%clk 0:01:13]} 18. g4 {[%clk 0:01:45]}  Nd4 {[%clk 0:01:13]} 19. Qd3 {[%clk 0:01:24]}  Qf4 {[%clk 0:01:12]} 20. Rfe1 {[%clk 0:01:24]}  Rad8 {[%clk 0:00:59]} 21. Ne4 {[%clk 0:01:18]}  Nxe4 {[%clk 0:00:56]} 22. Rxe4 {[%clk 0:01:17]}  Rxe4 {[%clk 0:00:51]} 23. Qxe4 {[%clk 0:01:18]}  Qh2+ {[%clk 0:00:44]} 24. Kf1 {[%clk 0:01:18]}  Bc5 {[%clk 0:00:43]} 25. d3 {[%clk 0:01:13]}  a5 {[%clk 0:00:31]} 26. Bc1 {[%clk 0:01:14]}  Ne6 {[%clk 0:00:30]} 27. Be3 {[%clk 0:01:07]}  Bxe3 {[%clk 0:00:29]} 28. fxe3 {[%clk 0:01:06]}  Rd6 {[%clk 0:00:27]} 29. Kf2 {[%clk 0:00:54]}  Ng5 {[%clk 0:00:24]} 30. Qe8+ {[%clk 0:00:54]}  Kh7 {[%clk 0:00:24]} 31. Rd2 {[%clk 0:00:27]}  Rf6+ {[%clk 0:00:23]} 32. Ke1 {[%clk 0:00:28]}  Qg1+ {[%clk 0:00:23]} 33. Ke2 {[%clk 0:00:28]}  Rf2# {[%clk 0:00:23]} 0-1


[Site "https://www.chess.com"]

[Event "Titled Tuesday Blitz July 4 Early 2023"]
[White "Postny, Evgeny"]
[Black "Marn, Jan"]
[WhiteFideId "2804344"]
[BlackFideId "14619245"]
[WhiteElo "2735"]
[BlackElo "2425"]
[Result "1-0"]
[Round "1"]
[TimeControl "180+2"]
[Date "2023.07.04"]
[WhiteClock "0:00:46"]
[BlackClock "0:00:02"]
[Board "89"]

1. e4 {[%clk 0:03:00]}  e5 {[%clk 0:02:59]} 2. Nf3 {[%clk 0:02:59]}  Nc6 {[%clk 0:02:59]} 3. Bc4 {[%clk 0:02:59]}  Bc5 {[%clk 0:02:59]} 4. c3 {[%clk 0:02:58]}  Nf6 {[%clk 0:02:59]} 5. d3 {[%clk 0:02:57]}  d6 {[%clk 0:02:59]} 6. b4 {[%clk 0:02:57]}  Bb6 {[%clk 0:02:59]} 7. a4 {[%clk 0:02:56]}  a5 {[%clk 0:02:59]} 8. b5 {[%clk 0:02:57]}  Ne7 {[%clk 0:02:59]} 9. O-O {[%clk 0:02:55]}  O-O {[%clk 0:02:54]} 10. h3 {[%clk 0:02:54]}  Ng6 {[%clk 0:02:53]} 11. Ba3 {[%clk 0:02:49]}  Be6 {[%clk 0:02:37]} 12. Nbd2 {[%clk 0:02:46]}  c6 {[%clk 0:02:34]} 13. Bxe6 {[%clk 0:02:27]}  fxe6 {[%clk 0:02:35]} 14. Nc4 {[%clk 0:02:26]}  Bc7 {[%clk 0:02:34]} 15. b6 {[%clk 0:02:25]}  Bb8 {[%clk 0:02:34]} 16. Rb1 {[%clk 0:02:22]}  h6 {[%clk 0:02:16]} 17. g3 {[%clk 0:02:19]}  Rf7 {[%clk 0:02:14]} 18. Qe2 {[%clk 0:02:14]}  Qd7 {[%clk 0:02:02]} 19. Kg2 {[%clk 0:02:09]}  Nh5 {[%clk 0:01:56]} 20. Bc1 {[%clk 0:02:09]}  Nf6 {[%clk 0:01:31]} 21. Re1 {[%clk 0:02:01]}  Re7 {[%clk 0:01:29]} 22. d4 {[%clk 0:01:53]}  exd4 {[%clk 0:01:28]} 23. cxd4 {[%clk 0:01:54]}  d5 {[%clk 0:01:28]} 24. e5 {[%clk 0:01:40]}  Ne4 {[%clk 0:01:18]} 25. Qc2 {[%clk 0:01:40]}  c5 {[%clk 0:01:05]} 26. Rxe4 {[%clk 0:01:31]}  dxe4 {[%clk 0:01:05]} 27. Qxe4 {[%clk 0:01:32]}  Qd5 {[%clk 0:00:29]} 28. Qxg6 {[%clk 0:01:23]}  Qxc4 {[%clk 0:00:29]} 29. Bxh6 {[%clk 0:01:20]}  Kf8 {[%clk 0:00:20]} 30. Rc1 {[%clk 0:01:13]}  Qxa4 {[%clk 0:00:05]} 31. Rxc5 {[%clk 0:01:09]}  Qe8 {[%clk 0:00:06]} 32. Qf6+ {[%clk 0:01:08]}  Rf7 {[%clk 0:00:05]} 33. Qg6 {[%clk 0:00:46]}  Rxf3 {[%clk 0:00:02]} 34. Qxg7# {[%clk 0:00:46]} 1-0


[Site "https://www.chess.com"]

[Event "Titled Tuesday Blitz July 4 Early 2023"]
[White "Urbina Perez, Juan Antonio"]
[Black "Fernandez Guillen, Ernesto J."]
[WhiteFideId "2217368"]
[BlackFideId "3512428"]
[WhiteElo "2424"]
[BlackElo "2734"]
[Result "0-1"]
[Round "1"]
[TimeControl "180+2"]
[Date "2023.07.04"]
[WhiteClock "0:00:21"]
[BlackClock "0:00:23"]
[Board "90"]

1. e4 {[%clk 0:02:55]}  e5 {[%clk 0:03:00]} 2. Nf3 {[%clk 0:02:55]}  Nc6 {[%clk 0:03:00]} 3. Bc4 {[%clk 0:02:55]}  g6 {[%clk 0:03:01]} 4. d4 {[%clk 0:02:49]}  exd4 {[%clk 0:03:01]} 5. Nxd4 {[%clk 0:02:48]}  Bg7 {[%clk 0:03:01]} 6. Nxc6 {[%clk 0:02:48]}  bxc6 {[%clk 0:03:02]} 7. O-O {[%clk 0:02:48]}  Ne7 {[%clk 0:03:03]} 8. Re1 {[%clk 0:02:44]}  O-O {[%clk 0:03:03]} 9. Nd2 {[%clk 0:02:41]}  d6 {[%clk 0:03:03]} 10. h3 {[%clk 0:02:40]}  h6 {[%clk 0:03:03]} 11. Nf3 {[%clk 0:02:39]}  Kh7 {[%clk 0:03:04]} 12. c3 {[%clk 0:02:34]}  f5 {[%clk 0:03:04]} 13. exf5 {[%clk 0:02:31]}  Nxf5 {[%clk 0:03:05]} 14. Bd3 {[%clk 0:02:26]}  Rb8 {[%clk 0:03:02]} 15. Qc2 {[%clk 0:02:20]}  Qf6 {[%clk 0:02:49]} 16. Rb1 {[%clk 0:02:13]}  c5 {[%clk 0:02:47]} 17. Be3 {[%clk 0:01:56]}  Bb7 {[%clk 0:02:44]} 18. Nh2 {[%clk 0:01:52]}  Nh4 {[%clk 0:02:37]} 19. Ng4 {[%clk 0:01:31]}  Qf7 {[%clk 0:02:37]} 20. Bf1 {[%clk 0:01:20]}  Nf3+ {[%clk 0:02:16]} 21. Kh1 {[%clk 0:01:08]}  Nxe1 {[%clk 0:02:17]} 22. Rxe1 {[%clk 0:01:08]}  Kh8 {[%clk 0:02:07]} 23. Nxh6 {[%clk 0:00:59]}  Bxh6 {[%clk 0:02:00]} 24. Bxh6 {[%clk 0:01:00]}  Rfe8 {[%clk 0:02:01]} 25. Rxe8+ {[%clk 0:00:56]}  Rxe8 {[%clk 0:02:00]} 26. Be3 {[%clk 0:00:57]}  Qf5 {[%clk 0:01:59]} 27. Qxf5 {[%clk 0:00:50]}  gxf5 {[%clk 0:01:59]} 28. Bb5 {[%clk 0:00:51]}  Re7 {[%clk 0:01:56]} 29. Bd3 {[%clk 0:00:50]}  Be4 {[%clk 0:01:55]} 30. Bb5 {[%clk 0:00:48]}  Kg7 {[%clk 0:01:55]} 31. Kh2 {[%clk 0:00:48]}  Kf6 {[%clk 0:01:55]} 32. g4 {[%clk 0:00:48]}  fxg4 {[%clk 0:01:48]} 33. hxg4 {[%clk 0:00:49]}  Bd5 {[%clk 0:01:47]} 34. a4 {[%clk 0:00:46]}  c4 {[%clk 0:01:41]} 35. a5 {[%clk 0:00:42]}  c6 {[%clk 0:01:40]} 36. Ba4 {[%clk 0:00:42]}  Rb7 {[%clk 0:01:38]} 37. Bc1 {[%clk 0:00:40]}  Be6 {[%clk 0:01:25]} 38. Kg3 {[%clk 0:00:39]}  Rg7 {[%clk 0:01:24]} 39. g5+ {[%clk 0:00:37]}  Ke5 {[%clk 0:01:23]} 40. Bc2 {[%clk 0:00:34]}  Bf5 {[%clk 0:01:23]} 41. f4+ {[%clk 0:00:33]}  Ke6 {[%clk 0:01:23]} 42. Ba4 {[%clk 0:00:33]}  Kd5 {[%clk 0:01:21]} 43. Bd1 {[%clk 0:00:32]}  Kc5 {[%clk 0:01:07]} 44. Be3+ {[%clk 0:00:31]}  Kb5 {[%clk 0:01:07]} 45. Bd4 {[%clk 0:00:32]}  Rh7 {[%clk 0:01:08]} 46. Bg4 {[%clk 0:00:32]}  Bd3 {[%clk 0:00:53]} 47. f5 {[%clk 0:00:32]}  c5 {[%clk 0:00:51]} 48. Bf6 {[%clk 0:00:31]}  Rf7 {[%clk 0:00:45]} 49. Bd8 {[%clk 0:00:29]}  Bxf5 {[%clk 0:00:40]} 50. Bxf5 {[%clk 0:00:29]}  Rxf5 {[%clk 0:00:41]} 51. Kg4 {[%clk 0:00:29]}  Rf1 {[%clk 0:00:41]} 52. g6 {[%clk 0:00:29]}  Rg1+ {[%clk 0:00:41]} 53. Kf5 {[%clk 0:00:29]}  Rf1+ {[%clk 0:00:40]} 54. Ke6 {[%clk 0:00:27]}  d5 {[%clk 0:00:39]} 55. g7 {[%clk 0:00:25]}  Rg1 {[%clk 0:00:39]} 56. Kf7 {[%clk 0:00:26]}  d4 {[%clk 0:00:40]} 57. cxd4 {[%clk 0:00:25]}  cxd4 {[%clk 0:00:41]} 58. Bf6 {[%clk 0:00:25]}  c3 {[%clk 0:00:31]} 59. Bh4 {[%clk 0:00:25]}  Rxg7+ {[%clk 0:00:22]} 60. Kxg7 {[%clk 0:00:23]}  cxb2 {[%clk 0:00:23]} 61. Bf6 {[%clk 0:00:21]}  b1=Q {[%clk 0:00:23]} 0-1


[Site "https://www.chess.com"]

[Event "Titled Tuesday Blitz July 4 Early 2023"]
[White "Samunenkov, Ihor"]
[Black "Disconzi da Silva, Rodrigo"]
[WhiteFideId "14187086"]
[BlackFideId "2100991"]
[WhiteElo "2727"]
[BlackElo "2423"]
[Result "1-0"]
[Round "1"]
[TimeControl "180+2"]
[Date "2023.07.04"]
[WhiteClock "0:00:05"]
[BlackClock "0:00:07"]
[Board "91"]

1. e4 {[%clk 0:02:59]}  c5 {[%clk 0:03:00]} 2. Nf3 {[%clk 0:02:59]}  e6 {[%clk 0:03:00]} 3. d4 {[%clk 0:02:59]}  cxd4 {[%clk 0:03:01]} 4. Nxd4 {[%clk 0:03:00]}  Nc6 {[%clk 0:03:01]} 5. Nc3 {[%clk 0:02:59]}  d6 {[%clk 0:02:59]} 6. g4 {[%clk 0:02:54]}  a6 {[%clk 0:02:55]} 7. Be3 {[%clk 0:02:33]}  Bd7 {[%clk 0:02:55]} 8. h4 {[%clk 0:02:27]}  Be7 {[%clk 0:02:46]} 9. g5 {[%clk 0:02:11]}  h6 {[%clk 0:02:41]} 10. g6 {[%clk 0:02:05]}  fxg6 {[%clk 0:02:25]} 11. Qg4 {[%clk 0:01:42]}  Ne5 {[%clk 0:02:23]} 12. Qg3 {[%clk 0:01:25]}  h5 {[%clk 0:01:20]} 13. Bh3 {[%clk 0:01:16]}  Kf7 {[%clk 0:01:10]} 14. f4 {[%clk 0:01:11]}  Ng4 {[%clk 0:01:09]} 15. Bxg4 {[%clk 0:01:11]}  hxg4 {[%clk 0:01:09]} 16. O-O-O {[%clk 0:01:09]}  Rxh4 {[%clk 0:00:41]} 17. Rhg1 {[%clk 0:00:48]}  Nh6 {[%clk 0:00:38]} 18. Rdf1 {[%clk 0:00:38]}  Rh3 {[%clk 0:00:37]} 19. Qe1 {[%clk 0:00:36]}  Rb8 {[%clk 0:00:36]} 20. f5 {[%clk 0:00:35]}  gxf5 {[%clk 0:00:34]} 21. Bxh6 {[%clk 0:00:31]}  Rxh6 {[%clk 0:00:28]} 22. exf5 {[%clk 0:00:31]}  exf5 {[%clk 0:00:25]} 23. Nxf5 {[%clk 0:00:28]}  Bxf5 {[%clk 0:00:25]} 24. Rxf5+ {[%clk 0:00:29]}  Kg8 {[%clk 0:00:23]} 25. Nd5 {[%clk 0:00:24]}  Bg5+ {[%clk 0:00:23]} 26. Kb1 {[%clk 0:00:23]}  Bh4 {[%clk 0:00:16]} 27. Qe4 {[%clk 0:00:17]}  Qe8 {[%clk 0:00:15]} 28. Qxg4 {[%clk 0:00:16]}  Rh7 {[%clk 0:00:12]} 29. a3 {[%clk 0:00:10]}  Kh8 {[%clk 0:00:13]} 30. Rh1 {[%clk 0:00:09]}  Rd8 {[%clk 0:00:13]} 31. Ka2 {[%clk 0:00:07]}  Qg8 {[%clk 0:00:10]} 32. Rxh4 {[%clk 0:00:06]}  g6 {[%clk 0:00:11]} 33. Rxh7+ {[%clk 0:00:06]}  Kxh7 {[%clk 0:00:11]} 34. Qh4+ {[%clk 0:00:05]}  Kg7 {[%clk 0:00:11]} 35. Qe7+ {[%clk 0:00:05]}  Kh6 {[%clk 0:00:10]} 36. Qe3+ {[%clk 0:00:04]}  Kg7 {[%clk 0:00:10]} 37. Qd4+ {[%clk 0:00:04]}  Kh6 {[%clk 0:00:09]} 38. Rf2 {[%clk 0:00:05]}  Qe6 {[%clk 0:00:07]} 39. Rh2+ {[%clk 0:00:05]}  Kg5 {[%clk 0:00:07]} 40. Qf4# {[%clk 0:00:05]} 1-0


[Site "https://www.chess.com"]

[Event "Titled Tuesday Blitz July 4 Early 2023"]
[White "Ladan, Nicholas"]
[Black "Wagner, Dennis"]
[WhiteFideId "30918855"]
[BlackFideId "24650684"]
[WhiteElo "2422"]
[BlackElo "2723"]
[Result "0-1"]
[Round "1"]
[TimeControl "180+2"]
[Date "2023.07.04"]
[WhiteClock "0:00:02"]
[BlackClock "0:00:19"]
[Board "92"]

1. d4 {[%clk 0:02:59]}  d5 {[%clk 0:02:59]} 2. Nf3 {[%clk 0:02:57]}  Nf6 {[%clk 0:02:59]} 3. Bf4 {[%clk 0:02:56]}  Bf5 {[%clk 0:02:55]} 4. c4 {[%clk 0:02:55]}  e6 {[%clk 0:02:55]} 5. Nc3 {[%clk 0:02:55]}  Bb4 {[%clk 0:02:56]} 6. Qa4+ {[%clk 0:02:54]}  Nc6 {[%clk 0:02:56]} 7. e3 {[%clk 0:02:54]}  O-O {[%clk 0:02:55]} 8. Be2 {[%clk 0:02:53]}  Ne4 {[%clk 0:02:55]} 9. Rc1 {[%clk 0:02:51]}  g5 {[%clk 0:02:42]} 10. Bg3 {[%clk 0:02:47]}  h5 {[%clk 0:02:42]} 11. h4 {[%clk 0:02:14]}  Nxg3 {[%clk 0:02:40]} 12. fxg3 {[%clk 0:02:13]}  g4 {[%clk 0:02:41]} 13. Nd2 {[%clk 0:02:08]}  Bd6 {[%clk 0:02:40]} 14. Nf1 {[%clk 0:02:03]}  dxc4 {[%clk 0:02:30]} 15. e4 {[%clk 0:01:54]}  Bg6 {[%clk 0:02:29]} 16. Rd1 {[%clk 0:01:51]}  e5 {[%clk 0:02:03]} 17. d5 {[%clk 0:01:33]}  Nd4 {[%clk 0:02:03]} 18. Qxc4 {[%clk 0:01:34]}  f5 {[%clk 0:02:00]} 19. exf5 {[%clk 0:01:31]}  Bxf5 {[%clk 0:01:54]} 20. Ne3 {[%clk 0:01:28]}  Bg6 {[%clk 0:01:53]} 21. Rd2 {[%clk 0:01:17]}  Qd7 {[%clk 0:01:49]} 22. Rf1 {[%clk 0:01:14]}  a6 {[%clk 0:01:39]} 23. a4 {[%clk 0:01:12]}  Qg7 {[%clk 0:01:27]} 24. Bd3 {[%clk 0:01:03]}  Qh6 {[%clk 0:01:22]} 25. Bxg6 {[%clk 0:00:46]}  Qxe3+ {[%clk 0:01:06]} 26. Kd1 {[%clk 0:00:46]}  b5 {[%clk 0:01:03]} 27. Qd3 {[%clk 0:00:38]}  Rxf1+ {[%clk 0:00:59]} 28. Qxf1 {[%clk 0:00:38]}  Rf8 {[%clk 0:00:59]} 29. Qe1 {[%clk 0:00:38]}  Qh6 {[%clk 0:00:45]} 30. Bd3 {[%clk 0:00:19]}  bxa4 {[%clk 0:00:41]} 31. Rf2 {[%clk 0:00:17]}  Rxf2 {[%clk 0:00:30]} 32. Qxf2 {[%clk 0:00:17]}  Nb3 {[%clk 0:00:30]} 33. Qc2 {[%clk 0:00:06]}  Qe3 {[%clk 0:00:25]} 34. Ne2 {[%clk 0:00:04]}  Bb4 {[%clk 0:00:20]} 35. Bh7+ {[%clk 0:00:03]}  Kh8 {[%clk 0:00:20]} 36. Bd3 {[%clk 0:00:02]}  Nd4 {[%clk 0:00:19]} 37. Nxd4 {[%clk 0:00:02]}  Qe1# {[%clk 0:00:19]} 0-1


[Site "https://www.chess.com"]

[Event "Titled Tuesday Blitz July 4 Early 2023"]
[White "Streltsov, Alexey"]
[Black "Rakhimzhan_Alen"]
[WhiteFideId "24104434"]
[WhiteElo "2418"]
[BlackElo "2716"]
[Result "0-1"]
[Round "1"]
[TimeControl "180+2"]
[Date "2023.07.04"]
[WhiteClock "0:02:21"]
[BlackClock "0:01:43"]
[Board "94"]

1. d4 {[%clk 0:03:00]}  Nf6 {[%clk 0:02:56]} 2. Nc3 {[%clk 0:03:01]}  d5 {[%clk 0:02:55]} 3. Bf4 {[%clk 0:03:01]}  a6 {[%clk 0:02:52]} 4. e3 {[%clk 0:03:00]}  b5 {[%clk 0:02:50]} 5. h4 {[%clk 0:02:59]}  e6 {[%clk 0:02:50]} 6. g4 {[%clk 0:02:59]}  Be7 {[%clk 0:02:48]} 7. g5 {[%clk 0:02:58]}  Nfd7 {[%clk 0:02:48]} 8. Nf3 {[%clk 0:02:57]}  c5 {[%clk 0:02:47]} 9. h5 {[%clk 0:02:58]}  Nc6 {[%clk 0:02:44]} 10. Bh3 {[%clk 0:02:57]}  g6 {[%clk 0:02:40]} 11. hxg6 {[%clk 0:02:55]}  hxg6 {[%clk 0:02:41]} 12. Qd2 {[%clk 0:02:49]}  Nb6 {[%clk 0:02:28]} 13. dxc5 {[%clk 0:02:42]}  Nc4 {[%clk 0:02:21]} 14. Qc1 {[%clk 0:02:41]}  e5 {[%clk 0:02:13]} 15. Bg2 {[%clk 0:02:29]}  Rxh1+ {[%clk 0:02:10]} 16. Bxh1 {[%clk 0:02:29]}  exf4 {[%clk 0:02:10]} 17. exf4 {[%clk 0:02:30]}  Bxc5 {[%clk 0:02:03]} 18. Ne2 {[%clk 0:02:25]}  Be6 {[%clk 0:01:57]} 19. b3 {[%clk 0:02:25]}  Nd6 {[%clk 0:01:54]} 20. Qd2 {[%clk 0:02:24]}  Bxf2+ {[%clk 0:01:48]} 21. Kf1 {[%clk 0:02:24]}  Ne4 {[%clk 0:01:47]} 22. Qd1 {[%clk 0:02:22]}  Qb6 {[%clk 0:01:43]} 23. Nfd4 {[%clk 0:02:21]} 0-1


[Site "https://www.chess.com"]

[Event "Titled Tuesday Blitz July 4 Early 2023"]
[White "Nouri, Alekhine"]
[Black "Hoffmann, Asa"]
[WhiteFideId "5216184"]
[BlackFideId "2001470"]
[WhiteElo "2707"]
[BlackElo "2417"]
[Result "0-1"]
[Round "1"]
[TimeControl "180+2"]
[Date "2023.07.04"]
[WhiteClock "0:00:00"]
[BlackClock "0:00:10"]
[Board "95"]

1. e4 {[%clk 0:02:58]}  d6 {[%clk 0:02:57]} 2. d4 {[%clk 0:02:58]}  Nf6 {[%clk 0:02:54]} 3. Nc3 {[%clk 0:02:52]}  c6 {[%clk 0:02:54]} 4. f3 {[%clk 0:02:49]}  Nbd7 {[%clk 0:02:53]} 5. Be3 {[%clk 0:02:47]}  e5 {[%clk 0:02:53]} 6. Qd2 {[%clk 0:02:47]}  Be7 {[%clk 0:02:53]} 7. Nge2 {[%clk 0:02:48]}  b5 {[%clk 0:02:52]} 8. O-O-O {[%clk 0:02:48]}  Nb6 {[%clk 0:02:50]} 9. Ng3 {[%clk 0:02:44]}  Qc7 {[%clk 0:02:49]} 10. h4 {[%clk 0:02:42]}  h6 {[%clk 0:02:42]} 11. Qf2 {[%clk 0:02:41]}  Rb8 {[%clk 0:02:41]} 12. dxe5 {[%clk 0:02:37]}  dxe5 {[%clk 0:02:40]} 13. Nf5 {[%clk 0:02:30]}  b4 {[%clk 0:02:32]} 14. Nb1 {[%clk 0:01:56]}  Bxf5 {[%clk 0:02:25]} 15. exf5 {[%clk 0:01:57]}  Nfd5 {[%clk 0:02:22]} 16. Nd2 {[%clk 0:01:57]}  a5 {[%clk 0:02:16]} 17. Ne4 {[%clk 0:01:53]}  a4 {[%clk 0:02:12]} 18. Bc5 {[%clk 0:01:51]}  b3 {[%clk 0:02:03]} 19. cxb3 {[%clk 0:01:50]}  axb3 {[%clk 0:02:02]} 20. a3 {[%clk 0:01:51]}  Na4 {[%clk 0:02:00]} 21. Bxe7 {[%clk 0:01:44]}  Qxe7 {[%clk 0:01:59]} 22. Bc4 {[%clk 0:01:44]}  O-O {[%clk 0:01:45]} 23. Qg3 {[%clk 0:01:42]}  Nf6 {[%clk 0:01:42]} 24. Kb1 {[%clk 0:01:31]}  Nxe4 {[%clk 0:01:35]} 25. fxe4 {[%clk 0:01:32]}  Nc5 {[%clk 0:01:31]} 26. Rhe1 {[%clk 0:01:18]}  Rfd8 {[%clk 0:01:29]} 27. Qe3 {[%clk 0:00:53]}  Kf8 {[%clk 0:01:19]} 28. f6 {[%clk 0:00:46]}  gxf6 {[%clk 0:00:48]} 29. Qxh6+ {[%clk 0:00:46]}  Kg8 {[%clk 0:00:48]} 30. Qg6+ {[%clk 0:00:44]}  Kf8 {[%clk 0:00:46]} 31. Qh7 {[%clk 0:00:44]}  Qc7 {[%clk 0:00:37]} 32. Qh8+ {[%clk 0:00:21]}  Ke7 {[%clk 0:00:35]} 33. Qg7 {[%clk 0:00:18]}  Rf8 {[%clk 0:00:33]} 34. Rf1 {[%clk 0:00:18]}  Nxe4 {[%clk 0:00:27]} 35. Bd3 {[%clk 0:00:05]}  f5 {[%clk 0:00:20]} 36. Bxe4 {[%clk 0:00:04]}  fxe4 {[%clk 0:00:20]} 37. Qf6+ {[%clk 0:00:05]}  Ke8 {[%clk 0:00:20]} 38. Rf5 {[%clk 0:00:06]}  Rb5 {[%clk 0:00:15]} 39. Rxe5+ {[%clk 0:00:07]}  Rxe5 {[%clk 0:00:13]} 40. Qf4 {[%clk 0:00:04]}  f6 {[%clk 0:00:12]} 41. g4 {[%clk 0:00:03]}  Ke7 {[%clk 0:00:12]} 42. Qh6 {[%clk 0:00:03]}  Rf7 {[%clk 0:00:11]} 43. Qh8 {[%clk 0:00:03]}  Rd5 {[%clk 0:00:11]} 44. Re1 {[%clk 0:00:03]}  Qe5 {[%clk 0:00:10]} 45. Qh7 {[%clk 0:00:00]}  Rxh7 {[%clk 0:00:10]} 0-1


[Site "https://www.chess.com"]